fUST/lending_fUST_20250919
["ID","MTS","AMOUNT","RATE_DAILY","PERIOD"]
[386434574,1758297071248,-151.0,0.00023619,7]
[386434575,1758297071258,-673.21,0.00023619,2]
[386434576,1758297071267,-571.08,0.00023619,2]
[386434577,1758297071276,-151.0,0.00023619,7]
[386434578,1758297071286,-151.0,0.00023619,7]
[386434579,1758297071295,-897.01,0.00023619,2]
[386434580,1758297071304,-480.0,0.00023619,2]
[386434581,1758297071314,-480.0,0.00023619,2]
[386434582,1758297071323,-480.0,0.00023619,2]
[386434583,1758297071332,-480.0,0.00023619,2]
[386434584,1758297071342,-611.47,0.00023619,2]
[386434585,1758297071351,-480.0,0.00023619,2]
[386434586,1758297071361,-804.36,0.00023619,2]
[386434587,1758297071370,-480.0,0.00023619,2]
[386434588,1758297071379,-480.0,0.00023619,2]
[386434589,1758297071389,-480.0,0.00023619,2]
[386434590,1758297071398,-480.0,0.00023619,2]
[386434591,1758297071408,-480.0,0.00023619,2]
[386434592,1758297071417,-460.0,0.00023655,2]
[386434593,1758297071427,-257.0,0.00023668,2]
[386434594,1758297071436,-2880.25,0.00023719,2]
[386434595,1758297071445,-1165.64,0.00023719,2]
[386434596,1758297071455,-480.0,0.00023719,2]
[386434597,1758297071464,-1036.4,0.00023719,2]
[386434598,1758297071474,-480.0,0.00023719,2]
[386434599,1758297071484,-1697.15,0.00023719,2]
[386434600,1758297071498,-856.13,0.00023719,2]
[386434601,1758297071508,-1346.51,0.00023719,2]
[386434602,1758297071517,-257.0,0.00023754,2]
[386434603,1758297071527,-554.77651244,0.00023782,2]
[386434604,1758297071537,-786.34,0.00023817,2]
[386434605,1758297071547,-589.59,0.00023817,2]
[386434606,1758297071557,-480.0,0.00023817,2]
[386434607,1758297071567,-480.0,0.00023817,2]
[386434608,1758297071577,-480.0,0.00023817,2]
[386434609,1758297071586,-480.0,0.00023817,2]
[386434610,1758297071596,-480.0,0.00023817,2]
[386434611,1758297071606,-767.65,0.00023817,2]
[386434612,1758297071616,-1126.9,0.00023817,2]
[386434613,1758297071625,-480.0,0.00023817,2]
[386434614,1758297071635,-534.1,0.00023817,2]
[386434615,1758297071645,-996.57,0.00023817,2]
[386434616,1758297071654,-480.0,0.00023817,2]
[386434617,1758297071665,-271.74462313,0.00023817,2]
[386434618,1758297071674,-480.0,0.00023817,2]
[386434619,1758297071683,-480.0,0.00023817,2]
[386434620,1758297071693,-480.0,0.00023817,2]
[386434621,1758297071702,-297.32279122,0.00023817,2]
[386434622,1758297071711,-151.0,0.00023818,7]
[386434623,1758297071721,-152.590971,0.00023818,7]
[386434624,1758297071730,-151.0,0.00023818,7]
[386434625,1758297071742,-151.0,0.00023818,7]
[386434626,1758297071752,-151.0,0.00023818,7]
[386434627,1758297071761,-153.989698,0.00023818,7]
[386434628,1758297071771,-480.0,0.00023818,2]
[386434629,1758297071780,-480.0,0.00023818,2]
[386434630,1758297071790,-477.04835463,0.00023818,2]
[386434631,1758297071801,-480.0,0.00023818,2]
[386434632,1758297071810,-1029.43,0.0002382,2]
[386434633,1758297071820,-257.0,0.0002382,2]
[386434634,1758297071829,-5260.9,0.00023829,2]
[386434635,1758297071839,-1082.76,0.00023829,2]
[386434636,1758297071849,-2836.07,0.00023829,2]
[386434637,1758297071860,-11080.64,0.00023829,2]
[386434638,1758297071870,-536.59,0.00023829,2]
[386434639,1758297071880,-225.66971,0.00023829,7]
[386434640,1758297071889,-225.66971,0.00023829,7]
[386434641,1758297071899,-225.66971,0.00023829,7]
[386434642,1758297071909,-225.66971,0.00023829,7]
[386434643,1758297071919,-1382.78,0.00023829,2]
[386434644,1758297071929,-480.0,0.00023829,2]
[386434645,1758297071938,-480.0,0.00023853,2]
[386434646,1758297071948,-558.84,0.00023853,2]
[386434647,1758297071957,-1005.8,0.00023853,2]
[386434648,1758297071967,-480.0,0.00023855,2]
[386434649,1758297071976,-2043.71,0.00023855,2]
[386434650,1758297071987,-676.73,0.00023855,2]
[386434651,1758297071996,-1428.29,0.00023855,2]
[386434652,1758297072006,-1246.69,0.00023855,2]
[386434653,1758297072015,-480.0,0.00023855,2]
[386434654,1758297072025,-480.0,0.00023855,2]
[386434655,1758297072034,-512.83,0.00023855,2]
[386434656,1758297072043,-492.4,0.00023855,2]
[386434657,1758297072053,-480.0,0.00023855,2]
[386434658,1758297072062,-625.08,0.00023855,2]
[386434659,1758297072156,-2995.62,0.00023856,2]
[386434660,1758297072173,-2231.65900691,0.00023864,2]
[386434661,1758297072183,-163.3,0.00023867,2]
[386434662,1758297072192,-151.81729377,0.0002388,2]
[386434663,1758297072201,-1173.48,0.00023892,2]
[386434664,1758297072211,-595.12,0.00023893,2]
[386434665,1758297072220,-656.0,0.00023893,2]
[386434666,1758297072230,-480.0,0.00023893,2]
[386434667,1758297072239,-480.0,0.00023893,2]
[386434668,1758297072249,-480.0,0.00023893,2]
[386434669,1758297072259,-536.48,0.00023893,2]
[386434670,1758297072268,-673.21,0.00023893,2]
[386434671,1758297072278,-571.08,0.00023893,2]
[386434672,1758297072287,-897.01,0.00023893,2]
[386434673,1758297072296,-480.0,0.00023893,2]
[386434674,1758297072306,-480.0,0.00023893,2]
[386434675,1758297072315,-480.0,0.00023893,2]
[386434676,1758297072325,-173.503752,0.00023893,2]
[386434677,1758297072336,-611.47,0.00023893,2]
[386434678,1758297072346,-480.0,0.00023893,2]
[386434679,1758297072358,-804.36,0.00023893,2]
[386434680,1758297072368,-480.0,0.00023893,2]
[386434681,1758297072380,-480.0,0.00023893,2]
[386434682,1758297072390,-480.0,0.00023893,2]
[386434683,1758297072399,-480.0,0.00023893,2]
[386434684,1758297072410,-480.0,0.00023893,2]
[386434685,1758297072421,-257.0,0.00023947,2]
[386434686,1758297072431,-720.0,0.00023956,20]
[386434687,1758297072441,-389.04,0.00023987,2]
[386434688,1758297072451,-2880.25,0.00023993,2]
[386434689,1758297072462,-1165.64,0.00023993,2]
[386434690,1758297072474,-480.0,0.00023993,2]
[386434691,1758297072483,-1036.4,0.00023993,2]
[386434692,1758297072497,-480.0,0.00023993,2]
[386434693,1758297072507,-1697.15,0.00023993,2]
[386434694,1758297072517,-856.13,0.00023993,2]
[386434695,1758297072527,-1346.51,0.00023993,2]
[386434696,1758297072539,-257.0,0.00024002,2]
[386434697,1758297072548,-2789.13131059,0.00024007,2]
[386434698,1758297072557,-800.0,0.00024048,2]
[386434699,1758297072570,-800.0,0.00024056,2]
[386434700,1758297072579,-786.34,0.00024091,2]
[386434701,1758297072589,-589.59,0.00024091,2]
[386434702,1758297072599,-480.0,0.00024091,2]
[386434703,1758297072609,-480.0,0.00024091,2]
[386434704,1758297072618,-480.0,0.00024091,2]
[386434705,1758297072628,-480.0,0.00024091,2]
[386434706,1758297072637,-164.47362185,0.00024091,2]
[386434707,1758297072646,-767.65,0.00024091,2]
[386434708,1758297072656,-1126.9,0.00024091,2]
[386434709,1758297072665,-480.0,0.00024091,2]
[386434710,1758297072674,-534.1,0.00024091,2]
[386434711,1758297072683,-996.57,0.00024091,2]
[386434712,1758297072693,-480.0,0.00024091,2]
[386434713,1758297072702,-480.0,0.00024091,2]
[386434714,1758297072712,-480.0,0.00024091,2]
[386434715,1758297072721,-480.0,0.00024091,2]
[386434716,1758297072731,-480.0,0.00024092,2]
[386434717,1758297072740,-480.0,0.00024092,2]
[386434718,1758297072750,-618.59594588,0.00024092,2]
[386434719,1758297072759,-1029.43,0.00024094,2]
[386434720,1758297072769,-151.0,0.000241,9]
[386434721,1758297072778,-600.0,0.00024101,2]
[386434722,1758297072788,-5260.9,0.00024103,2]
[386434723,1758297072797,-1082.76,0.00024103,2]
[386434724,1758297072806,-2836.07,0.00024103,2]
[386434725,1758297072816,-11080.64,0.00024103,2]
[386434726,1758297072825,-536.59,0.00024103,2]
[386434727,1758297072835,-1382.78,0.00024103,2]
[386434728,1758297072844,-480.0,0.00024103,2]
[386434729,1758297072853,-3000.0,0.00024112,2]
[386434730,1758297072863,-3000.0,0.00024112,2]
[386434731,1758297072873,-480.0,0.00024127,2]
[386434732,1758297072885,-558.84,0.00024127,2]
[386434733,1758297072896,-1005.8,0.00024127,2]
[386434734,1758297072908,-480.0,0.00024129,2]
[386434735,1758297072919,-2043.71,0.00024129,2]
[386434736,1758297072929,-676.73,0.00024129,2]
[386434737,1758297072940,-1428.29,0.00024129,2]
[386434738,1758297072950,-1246.69,0.00024129,2]
[386434739,1758297072960,-480.0,0.00024129,2]
[386434740,1758297072970,-480.0,0.00024129,2]
[386434741,1758297072980,-512.83,0.00024129,2]
[386434742,1758297072991,-492.4,0.00024129,2]
[386434743,1758297073001,-480.0,0.00024129,2]
[386434744,1758297073010,-625.08,0.00024129,2]
[386434745,1758297073019,-2995.62,0.0002413,2]
[386434746,1758297073029,-453.58,0.00024144,6]
[386434747,1758297073041,-1173.48,0.00024166,2]
[386434748,1758297073051,-595.12,0.00024167,2]
[386434749,1758297073062,-656.0,0.00024167,2]
[386434750,1758297073074,-480.0,0.00024167,2]
[386434751,1758297073084,-480.0,0.00024167,2]
[386434752,1758297073094,-299.62519,0.00024167,7]
[386434753,1758297073105,-480.0,0.00024167,2]
[386434754,1758297073114,-155.247672,0.00024167,7]
[386434755,1758297073123,-536.48,0.00024167,2]
[386434756,1758297073133,-673.21,0.00024167,2]
[386434757,1758297073142,-571.08,0.00024167,2]
[386434758,1758297073152,-897.01,0.00024167,2]
[386434759,1758297073161,-480.0,0.00024167,2]
[386434760,1758297073171,-480.0,0.00024167,2]
[386434761,1758297073181,-273.03317892,0.00024167,2]
[386434762,1758297073191,-611.47,0.00024167,2]
[386434763,1758297073202,-480.0,0.00024167,2]
[386434764,1758297073212,-804.36,0.00024167,2]
[386434765,1758297073221,-480.0,0.00024167,2]
[386434766,1758297073233,-480.0,0.00024167,2]
[386434767,1758297073244,-480.0,0.00024167,2]
[386434768,1758297073253,-480.0,0.00024167,2]
[386434769,1758297073263,-480.0,0.00024167,2]
[386434770,1758297073272,-257.0,0.00024168,2]
[386434771,1758297073281,-560.0,0.00024202,2]
[386434772,1758297073291,-197.54421484,0.00024267,7]
[386434773,1758297073302,-151.0,0.00024267,7]
[386434774,1758297073312,-151.0,0.00024267,7]
[386434775,1758297073321,-151.0,0.00024267,7]
[386434776,1758297073331,-151.0,0.00024267,7]
[386434777,1758297073340,-151.0,0.00024267,7]
[386434778,1758297073349,-178.623091,0.00024267,7]
[386434779,1758297073359,-178.623091,0.00024267,7]
[386434780,1758297073368,-178.623091,0.00024267,7]
[386434781,1758297073377,-178.623091,0.00024267,7]
[386434782,1758297073388,-2880.25,0.00024267,2]
[386434783,1758297073397,-1165.64,0.00024267,2]
[386434784,1758297073407,-480.0,0.00024267,2]
[386434785,1758297073416,-1036.4,0.00024267,2]
[386434786,1758297073425,-480.0,0.00024267,2]
[386434787,1758297073435,-1697.15,0.00024267,2]
[386434788,1758297073444,-856.13,0.00024267,2]
[386434789,1758297073453,-1346.51,0.00024267,2]
[386434790,1758297073462,-151.0,0.00024307,4]
[386434791,1758297073472,-6007.30167725,0.00024364,2]
[386434792,1758297073481,-151.0,0.00024365,7]
[386434793,1758297073494,-159.960595,0.00024365,7]
[386434794,1758297073503,-786.34,0.00024365,2]
[386434795,1758297073510,-589.59,0.00024365,2]
[386434796,1758297073519,-480.0,0.00024365,2]
[386434797,1758297073527,-480.0,0.00024365,2]
[386434798,1758297073538,-480.0,0.00024365,2]
[386434799,1758297073546,-480.0,0.00024365,2]
[386434800,1758297073555,-767.65,0.00024365,2]
[386434801,1758297073567,-1126.9,0.00024365,2]
[386434802,1758297073576,-300.48921238,0.00024365,2]
[386434803,1758297073585,-534.1,0.00024365,2]
[386434804,1758297073594,-996.57,0.00024365,2]
[386434805,1758297073603,-480.0,0.00024365,2]
[386434806,1758297073613,-480.0,0.00024365,2]
[386434807,1758297073622,-480.0,0.00024365,2]
[386434808,1758297073632,-480.0,0.00024365,2]
[386434809,1758297073641,-480.0,0.00024366,2]
[386434810,1758297073650,-281.5333127,0.00024366,2]
[386434811,1758297073660,-1029.43,0.00024368,2]
[386434812,1758297073669,-5260.9,0.00024377,2]
[386434813,1758297073678,-1082.76,0.00024377,2]
[386434814,1758297073687,-2836.07,0.00024377,2]
[386434815,1758297073696,-11080.64,0.00024377,2]
[386434816,1758297073706,-536.59,0.00024377,2]
[386434817,1758297073715,-1382.78,0.00024377,2]
[386434818,1758297073725,-480.0,0.00024377,2]
[386434819,1758297073734,-151.0,0.000244,7]
[386434820,1758297073745,-480.0,0.00024401,2]
[386434821,1758297073754,-558.84,0.00024401,2]
[386434822,1758297073764,-1005.8,0.00024401,2]
[386434823,1758297073773,-480.0,0.00024403,2]
[386434824,1758297073783,-2043.71,0.00024403,2]
[386434825,1758297073882,-676.73,0.00024403,2]
[386434826,1758297073891,-1428.29,0.00024403,2]
[386434827,1758297073901,-1246.69,0.00024403,2]
[386434828,1758297073910,-601.98,0.00024403,2]
[386434829,1758297073919,-480.0,0.00024403,2]
[386434830,1758297073927,-512.83,0.00024403,2]
[386434831,1758297073936,-492.4,0.00024403,2]
[386434832,1758297073945,-480.0,0.00024403,2]
[386434833,1758297073955,-625.08,0.00024403,2]
[386434834,1758297073964,-2995.62,0.00024404,2]
[386434835,1758297073973,-257.0,0.00024439,2]
[386434836,1758297073983,-197693.57735545,0.0002444,2]
[386434837,1758297073993,-151.0,0.0002444,7]
[386434838,1758297074003,-151.0,0.0002444,7]
[386434839,1758297074012,-151.0,0.0002444,7]
[386434840,1758297074022,-151.0,0.0002444,7]
[386434841,1758297074031,-151.0,0.0002444,7]
[386434842,1758297074040,-332.518182,0.0002444,7]
[386434843,1758297074049,-332.518182,0.0002444,7]
[386434844,1758297074059,-332.518182,0.0002444,7]
[386434845,1758297074069,-332.518182,0.0002444,7]
[386434846,1758297074078,-151.0,0.0002444,7]
[386434847,1758297074088,-151.0,0.0002444,7]
[386434848,1758297074097,-151.0,0.0002444,7]
[386434849,1758297074107,-300.563994,0.0002444,7]
[386434850,1758297074117,-151.0,0.0002444,7]
[386434851,1758297074127,-215.95,0.0002444,7]
[386434852,1758297074136,-155.960703,0.0002444,7]
[386434853,1758297074146,-151.0,0.0002444,7]
[386434854,1758297074157,-151.0,0.0002444,7]
[386434855,1758297074168,-151.0,0.0002444,7]
[386434856,1758297074178,-225.66971,0.0002444,7]
[386434857,1758297074187,-225.66971,0.0002444,7]
[386434858,1758297074196,-225.66971,0.0002444,7]
[386434859,1758297074206,-225.669717,0.0002444,7]
[386434860,1758297074215,-151.0,0.0002444,7]
[386434861,1758297074225,-151.0,0.0002444,7]
[386434862,1758297074235,-151.0,0.0002444,7]
[386434863,1758297074245,-219.962288,0.0002444,7]
[386434864,1758297074255,-151.0,0.0002444,7]
[386434865,1758297074264,-647.559712,0.0002444,7]
[386434866,1758297074273,-219.962288,0.0002444,7]
[386434867,1758297074283,-647.559712,0.0002444,7]
[386434868,1758297074293,-219.962288,0.0002444,7]
[386434869,1758297074302,-647.559712,0.0002444,7]
[386434870,1758297074312,-219.962294,0.0002444,7]
[386434871,1758297074323,-647.55971044,0.0002444,7]
[386434872,1758297074332,-521.050658,0.0002444,7]
[386434873,1758297074342,-521.050658,0.0002444,7]
[386434874,1758297074352,-521.050658,0.0002444,7]
[386434875,1758297074361,-151.0,0.0002444,7]
[386434876,1758297074370,-159.803401,0.0002444,7]
[386434877,1758297074380,-521.050659,0.0002444,7]
[386434878,1758297074390,-295.318742,0.0002444,7]
[386434879,1758297074399,-295.318742,0.0002444,7]
[386434880,1758297074409,-295.318742,0.0002444,7]
[386434881,1758297074419,-295.318741,0.0002444,7]
[386434882,1758297074428,-1217.208672,0.0002444,7]
[386434883,1758297074438,-1217.208672,0.0002444,7]
[386434884,1758297074448,-1173.48,0.0002444,2]
[386434885,1758297074457,-1217.208672,0.0002444,7]
[386434886,1758297074468,-1217.208664,0.0002444,7]
[386434887,1758297074478,-151.0,0.0002444,7]
[386434888,1758297074488,-151.0,0.0002444,7]
[386434889,1758297074500,-151.0,0.0002444,7]
[386434890,1758297074510,-151.0,0.0002444,7]
[386434891,1758297074519,-151.0,0.0002444,7]
[386434892,1758297074530,-151.0,0.0002444,7]
[386434893,1758297074539,-163.603315,0.0002444,7]
[386434894,1758297074550,-595.12,0.00024441,2]
[386434895,1758297074561,-656.0,0.00024441,2]
[386434896,1758297074572,-480.0,0.00024441,2]
[386434897,1758297074582,-480.0,0.00024441,2]
[386434898,1758297074591,-480.0,0.00024441,2]
[386434899,1758297074601,-536.48,0.00024441,2]
[386434900,1758297074612,-673.21,0.00024441,2]
[386434901,1758297074621,-571.08,0.00024441,2]
[386434902,1758297074631,-897.01,0.00024441,2]
[386434903,1758297074640,-480.0,0.00024441,2]
[386434904,1758297074650,-439.22485853,0.00024441,2]
[386434905,1758297074660,-611.47,0.00024441,2]
[386434906,1758297074671,-480.0,0.00024441,2]
[386434907,1758297074680,-804.36,0.00024441,2]
[386434908,1758297074690,-480.0,0.00024441,2]
[386434909,1758297074699,-480.0,0.00024441,2]
[386434910,1758297074709,-480.0,0.00024441,2]
[386434911,1758297074718,-480.0,0.00024441,2]
[386434912,1758297074728,-480.0,0.00024441,2]
[386434913,1758297074739,-257.0,0.00024476,2]
[386434914,1758297074749,-257.0,0.00024503,2]
[386434915,1758297074758,-257.0,0.00024527,2]
[386434916,1758297074768,-151.0,0.00024541,7]
[386434917,1758297074778,-151.0,0.00024541,7]
[386434918,1758297074789,-151.0,0.00024541,7]
[386434919,1758297074798,-151.0,0.00024541,7]
[386434920,1758297074808,-162.042622,0.00024541,7]
[386434921,1758297074818,-178.623091,0.00024541,7]
[386434922,1758297074829,-178.623091,0.00024541,7]
[386434923,1758297074839,-178.623091,0.00024541,7]
[386434924,1758297074850,-178.623085,0.00024541,7]
[386434925,1758297074860,-2880.25,0.00024541,2]
[386434926,1758297074870,-1165.64,0.00024541,2]
[386434927,1758297074879,-480.0,0.00024541,2]
[386434928,1758297074889,-1036.4,0.00024541,2]
[386434929,1758297074898,-480.0,0.00024541,2]
[386434930,1758297074908,-1697.15,0.00024541,2]
[386434931,1758297074918,-856.13,0.00024541,2]
[386434932,1758297074927,-1346.51,0.00024541,2]
[386434933,1758297074938,-1396.3051324,0.00024583,2]
[386434934,1758297074947,-786.34,0.00024639,2]
[386434935,1758297074957,-589.59,0.00024639,2]
[386434936,1758297074966,-480.0,0.00024639,2]
[386434937,1758297074976,-480.0,0.00024639,2]
[386434938,1758297074985,-480.0,0.00024639,2]
[386434939,1758297074996,-480.0,0.00024639,2]
[386434940,1758297075005,-767.65,0.00024639,2]
[386434941,1758297075015,-1126.9,0.00024639,2]
[386434942,1758297075024,-534.1,0.00024639,2]
[386434943,1758297075034,-996.57,0.00024639,2]
[386434944,1758297075044,-480.0,0.00024639,2]
[386434945,1758297075053,-480.0,0.00024639,2]
[386434946,1758297075063,-480.0,0.00024639,2]
[386434947,1758297075073,-480.0,0.00024639,2]
[386434948,1758297075082,-480.0,0.0002464,2]
[386434949,1758297075092,-1029.43,0.00024642,2]
[386434950,1758297075102,-151.0,0.00024649,4]
[386434951,1758297075111,-1632.52853536,0.00024651,2]
[386434952,1758297075253,-455.27,0.00024651,2]
[386434953,1758297075352,-1181.97990281,0.00024651,2]
[386434954,1758297075385,-480.0,0.00021115,2]
[386434955,1758297075394,-480.0,0.00022249,2]
[386434956,1758297075403,-226.846225,0.00022759,7]
[386434957,1758297075413,-480.0,0.00022897,2]
[386434958,1758297075423,-462.47090782,0.00024651,2]
[386434959,1758297075434,-668.74623803,0.00024651,2]
[386434960,1758297075445,-859.90441598,0.00024651,2]
[386434961,1758297075455,-1082.76,0.00024651,2]
[386434962,1758297075464,-2836.07,0.00024651,2]
[386434963,1758297075474,-11080.64,0.00024651,2]
[386434964,1758297075483,-536.59,0.00024651,2]
[386434965,1758297075499,-1382.78,0.00024651,2]
[386434966,1758297075508,-480.0,0.00024651,2]
[386434967,1758297075518,-200.0,0.00024657,2]
[386434968,1758297075528,-200.0,0.00024657,2]
[386434969,1758297075539,-200.0,0.00024657,2]
[386434970,1758297075550,-200.0,0.00024657,2]
[386434971,1758297075560,-200.0,0.00024657,2]
[386434972,1758297075570,-200.0,0.00024657,2]
[386434973,1758297075580,-307.45205487,0.00024657,2]
[386434974,1758297075590,-150.53625182,0.00024658,2]
[386434975,1758297075600,-380.0,0.00024658,2]
[386434976,1758297075610,-162.55276932,0.00024658,2]
[386434977,1758297075619,-200.0,0.00024658,2]
[386434978,1758297075629,-200.0,0.00024658,15]
[386434979,1758297075639,-1905.84911183,0.0002466,2]
[386434980,1758297075649,-1000.0,0.0002466,2]
[386434981,1758297075659,-255.81,0.00024675,2]
[386434982,1758297075669,-558.84,0.00024675,2]
[386434983,1758297075678,-1005.8,0.00024675,2]
[386434984,1758297075688,-480.0,0.00024677,2]
[386434985,1758297075698,-2043.71,0.00024677,2]
[386434986,1758297075708,-676.73,0.00024677,2]
[386434987,1758297075718,-1428.29,0.00024677,2]
[386434988,1758297075728,-824.79430178,0.00024677,2]
[386434989,1758297075741,-421.89569822,0.00024677,2]
[386434990,1758297075752,-480.0,0.00024677,2]
[386434991,1758297075762,-512.83,0.00024677,2]
[386434992,1758297075771,-492.4,0.00024677,2]
[386434993,1758297075781,-625.08,0.00024677,2]
[386434994,1758297075794,-2995.62,0.00024678,2]
[386434995,1758297075804,-677.14371189,0.00024708,2]
[386434996,1758297075814,-1173.48,0.00024714,2]
[386434997,1758297075823,-595.12,0.00024715,2]
[386434998,1758297075833,-656.0,0.00024715,2]
[386434999,1758297075843,-480.0,0.00024715,2]
[386435000,1758297075852,-142.64357894,0.00024715,2]
[386435001,1758297076131,-480.0,0.00021116,2]
[386435002,1758297076140,-1000.0,0.00021141,2]
[386435003,1758297076150,-1000.0,0.00021141,2]
[386435004,1758297076159,-1000.0,0.00021141,2]
[386435005,1758297076169,-480.0,0.00021351,2]
[386435006,1758297076178,-480.0,0.00021351,2]
[386435007,1758297076187,-480.0,0.00021351,2]
[386435008,1758297076197,-480.0,0.00021389,2]
[386435009,1758297076207,-480.0,0.0002139,2]
[386435010,1758297076216,-480.0,0.00021625,2]
[386435011,1758297076226,-480.0,0.00021625,2]
[386435012,1758297076235,-572.38171901,0.00021663,2]
[386435013,1758297076245,-480.0,0.00021899,2]
[386435014,1758297076255,-480.0,0.00022173,2]
[386435015,1758297076264,-480.0,0.00022447,2]
[386435016,1758297076274,-480.0,0.00022523,2]
[386435017,1758297076284,-480.0,0.00022721,2]
[386435018,1758297076293,-480.0,0.00022797,2]
[386435019,1758297076305,-480.0,0.00022995,2]
[386435020,1758297076317,-480.0,0.00023071,2]
[386435021,1758297076327,-150.0,0.00023109,2]
[386435022,1758297076336,-480.0,0.00023171,2]
[386435023,1758297076345,-480.0,0.00023269,2]
[386435024,1758297076355,-480.0,0.00023345,2]
[386435025,1758297076364,-480.0,0.00023445,2]
[386435026,1758297076374,-173.75285733,0.00023543,2]
[386435027,1758297076385,-226.846231,0.00023555,7]
[386435028,1758297076394,-480.0,0.00023619,2]
[386435029,1758297076404,-480.0,0.00023719,2]
[386435030,1758297076414,-480.0,0.00023893,2]
[386435031,1758297076423,-480.0,0.00023993,2]
[386435032,1758297076433,-300.01,0.00024167,2]
[386435033,1758297076442,-480.0,0.00024267,2]
[386435034,1758297076451,-480.0,0.00024541,2]
[386435035,1758297076461,-337.35642106,0.00024715,2]
[386435036,1758297076471,-480.0,0.00024715,2]
[386435037,1758297076480,-536.48,0.00024715,2]
[386435038,1758297076494,-673.21,0.00024715,2]
[386435039,1758297076504,-571.08,0.00024715,2]
[386435040,1758297076513,-897.01,0.00024715,2]
[386435041,1758297076523,-591.49751887,0.00024715,2]
[386435042,1758297076533,-257.69020585,0.00024715,2]
[386435043,1758297077398,-500.0,0.00021112,2]
[386435044,1758297077420,-500.0,0.00021112,2]
[386435045,1758297077438,-500.0,0.00021112,2]
[386435046,1758297077457,-500.0,0.00021112,2]
[386435047,1758297077477,-500.0,0.00021112,2]
[386435048,1758297077501,-500.0,0.00021112,2]
[386435049,1758297077518,-500.0,0.00021112,2]
[386435050,1758297077536,-500.0,0.00021112,2]
[386435051,1758297077551,-54.39325301,0.00021112,2]
[386435052,1758297078920,150.0,0.00020297,2]
[386435053,1758297128716,17858.49602949,0.00021041,3]
[386435054,1758297149545,150.0,0.0001939,2]
[386435055,1758297150030,150.0,0.00020313,2]
[386435059,1758297188792,872.69070775,0.00021011,2]
[386435061,1758297213258,3000.0,0.00029467,60]
[386435062,1758297213342,370000.0,0.00021013,2]
[386435063,1758297229163,4857.01,0.00027397,120]
[386435064,1758297232479,150.0,0.00019374,2]
[386435066,1758297233477,150.0,0.00020296,2]
[386435067,1758297286915,1002.6,0.000211,2]
[386435070,1758297314957,150.0,0.00019368,2]
[386435071,1758297315488,150.0,0.00020291,2]
[386435074,1758297376693,245918.0813765,0.00021015,2]
[386435075,1758297381324,196.0,0.00020877,3]
[386435076,1758297402911,150.0,0.00019359,2]
[386435077,1758297403373,150.0,0.00020281,2]
[386435079,1758297472538,1112.68065239,0.00021009,2]
[386435080,1758297485874,150.0,0.0001939,2]
[386435081,1758297486342,150.0,0.00020313,2]
[386435083,1758297564621,150.0,0.00019373,2]
[386435084,1758297565112,150.0,0.00020295,2]